Cogmind - Beta 11 @@@ ROGUE MODE // 2022.04.01 @ 00:11:58 Player: Thr33_1Nt Result: Destroyed by S-43 Plague with Heavy Machine Gun Performance ------------- Evolutions (7) 3500 Regions Visited (13) 2600 Robots Destroyed (22) 110 Value Destroyed (427) 427 Prototype IDs (3) 60 Alien Tech Used (0) 0 Bonus (607) 607 TOTAL SCORE: 7304 Bonus ------- Follower Combat Kills 107 Entered DSFs 500 Cogmind --------- Core Integrity 0/1300 Matter 182/300 Energy 93/100 System Corruption 10% Temperature Cool (4) Movement Walking (120) Location -3/Research Parts ------- > --- POWER (2) -------- (None) > --- PROPULSION (6) --- Centrium Leg Centrium Leg > --- UTILITY (11) ----- Advanced Signal Interpreter > --- WEAPON (2) ------- (None) > --- INVENTORY (5) ---- Xenon Bombardment Thruster Xenon Bombardment Thruster Peak State ------------ > --- POWER ------------ Light Antimatter Reactor > --- PROPULSION ------- Armored Heavy Treads Advanced VSS Leg Wheel Xenon Bombardment Thruster Improved Surge Thruster > --- UTILITY ---------- Advanced Signal Interpreter > --- WEAPON ----------- Rocket Array > --- INVENTORY -------- Micro Fission Core Nuclear Pulse Array [Rating: 51] Favorites ----------- Power Light Ion Engine Engine Light Ion Engine Power Core Light Nuclear Core Reactor Light Antimatter Reactor Propulsion Wheel Treads Armored Heavy Treads Leg Improved Carbon-fiber Leg Wheel Wheel Hover Unit Airjet Flight Unit Flight Unit Utility Small Storage Unit Device Seismic Detector Storage Small Storage Unit Processor Improved Signal Interpreter Hackware Hacking Suite Protection Improved Light Armor Plating Weapon Field Laser Energy Gun Field Laser Ballistic Gun Light Assault Rifle Launcher Rocket Array Special Weapon Remote Datajack Impact Weapon Hammer Build | -11 -10 -10 -10 -9 -8 -7 -7 -7 -6 -5 -5 -4 -3 ------- Run | Scr Mat Min Exi Min Mat Fac Was Fac Fac Fac DSF Fac Res Slots Evolved 14 | . . . . . 4 2 . . 2 2 . 2 2 Power 1 | . . . . . . . . . . . . . 1 Propulsion 4 | . . . . . 2 . . . 1 1 . . . Utility 9 | . . . . . 2 2 . . 1 1 . 2 1 Weapon . | . . . . . . . . . . . . . . Parts Attached 81 | 8 . . 3 1 12 12 1 23 . . 4 8 9 Power 9 | 1 . . . . 2 1 . . . . 1 2 2 Engine 4 | 1 . . . . 2 . . . . . . 1 . Core 4 | . . . . . . 1 . . . . 1 1 1 Reactor 1 | . . . . . . . . . . . . . 1 Propulsion 29 | 3 . . . 1 3 3 . 7 . . 3 3 6 Treads 2 | . . . . . . . . . . . . . 2 Leg 6 | . . . . . . . . 3 . . . 1 2 Wheel 9 | 3 . . . 1 3 . . 1 . . . 1 . Hover 1 | . . . . . . . . 1 . . . . . Flight 11 | . . . . . . 3 . 2 . . 3 1 2 Utility 23 | 2 . . 3 . 4 4 . 7 . . . 2 1 Device 13 | 1 . . 1 . 2 2 . 5 . . . 1 1 Storage 4 | 1 . . 2 . . . . 1 . . . . . Processor 3 | . . . . . 1 1 . . . . . 1 . Hackware 1 | . . . . . 1 . . . . . . . . Protection 2 | . . . . . . 1 . 1 . . . . . Artifact . | . . . . . . . . . . . . . . Weapon 20 | 2 . . . . 3 4 1 9 . . . 1 . Energy Gun 8 | 1 . . . . 1 2 . 4 . . . . . Energy Cannon . | . . . . . . . . . . . . . . Ballistic Gun 5 | 1 . . . . 2 . . 2 . . . . . Ballistic Cannon . | . . . . . . . . . . . . . . Launcher 3 | . . . . . . . . 2 . . . 1 . Special Weapon 1 | . . . . . . . 1 . . . . . . Impact Weapon 3 | . . . . . . 2 . 1 . . . . . Slashing Weapon . | . . . . . . . . . . . . . . Piercing Weapon . | . . . . . . . . . . . . . . Special Melee Weapon . | . . . . . . . . . . . . . . Unidentified Prototypes 3 | . . . . . . . . 3 . . . . . Parts Lost 23 | . . . . . . . . 2 5 . 3 1 12 Power 4 | . . . . . . . . . 1 . . . 3 Propulsion 12 | . . . . . . . . 1 2 . 2 . 7 Utility 5 | . . . . . . . . . 2 . 1 1 1 Weapon 2 | . . . . . . . . 1 . . . . 1 Highest Loss Streak 8 | . . . . . . . . 2 5 . 3 1 8 To Critical Strikes . | . . . . . . . . . . . . . . Average Slot Usage (%) 84 | . 100 100 99 100 95 95 100 92 60 11 27 17 26 Engine 6 | . 14 14 14 14 9 3 . . . . . 2 1 Core 2 | . . . . . . 3 7 7 6 . 5 . . Wheel 16 | . 28 28 28 28 36 16 7 . . . . 2 2 Flight 8 | . . . . . . 13 23 21 20 . 15 5 3 Device 13 | . 14 14 13 14 17 11 15 20 13 . . 4 1 Storage 8 | . 14 14 14 14 9 7 7 7 6 5 . . . Processor 4 | . . . . . 4 13 15 7 6 5 4 . 4 Hackware 2 | . . . . . . 7 7 7 6 . . . . Energy Gun 8 | . 14 14 14 14 9 6 7 7 . . . . . Ballistic Gun 7 | . 14 14 14 14 9 7 2 1 . . . . . Naked Turns 7 | . . . . . . . . . . . 7 . . Heaviest Build 19 | 12 12 12 12 12 17 18 17 19 12 5 5 11 19 Greatest Support 60 | 26 20 20 20 20 52 52 20 24 15 3 9 18 60 Greatest Overweight (x) 1 | . . . . . . . . 1 1 1 . 1 1 Average Overweight (x) . | . . . . . . . . . . 1 . . . Largest Inventory Capacity 35 | 8 8 8 35 8 8 8 8 8 8 8 8 5 5 Average Capacity 7 | 7 8 8 8 8 8 8 8 8 8 8 5 5 5 Most Carried 8 | 8 8 8 8 8 8 8 8 8 8 8 7 4 5 Average Carried 7 | 5 7 8 7 7 7 7 8 7 8 8 4 2 2 Final Capacity 8 | 8 8 8 8 8 8 8 8 8 8 8 5 5 5 Final Carried 8 | 8 8 8 8 8 8 8 8 8 8 8 5 1 2 Class Distribution -------------------- 64% | Mutant 28% | Scavenger-Mutant 7% | Sprinter Dominant Class ---------------- Mutant | -10/Materials Mutant | -10/Mines Mutant | -10/Exiles Mutant | -9/Mines Scavenger-Mutant | -8/Materials Scavenger-Mutant | -7/Factory Scavenger-Mutant | -7/Waste Mutant | -7/Factory Sprinter | -6/Factory Sprinter | -5/Factory Sprinter | -5/DSF Sprinter | -4/Factory Mutant | -3/Research Resources | -11 -10 -10 -10 -9 -8 -7 -7 -7 -6 -5 -5 -4 -3 ----------- Run | Scr Mat Min Exi Min Mat Fac Was Fac Fac Fac DSF Fac Res Matter Collected 933 | 283 . . . 18 152 45 . 130 . . 17 130 158 Remotely 158 | . . . . . . . . . . . . . 158 Salvage Created 870 | 67 . 35 . . 179 45 . 130 . . . 318 96 Parts 48 | 5 . 4 . . 6 2 . 7 . . . 13 11 Haulers Intercepted 1 | . . . . . . . . 1 . . . . . Recyclers Shooed . | . . . . . . . . . . . . . . Parts Field Recycled . | . . . . . . . . . . . . . . Retrieved Matter . | . . . . . . . . . . . . . . Parts Self-Destructed . | . . . . . . . . . . . . . . Prevented . | . . . . . . . . . . . . . . Kills | -11 -10 -10 -10 -9 -8 -7 -7 -7 -6 -5 -5 -4 -3 ------- Run | Scr Mat Min Exi Min Mat Fac Was Fac Fac Fac DSF Fac Res Combat Hostiles Destroyed 9 | . . 2 . . . 1 . 2 . . . . 4 Guns 5 | . . 2 . . . 1 . 2 . . . . . AOE 4 | . . . . . . . . . . . . . 4 Classes Destroyed 8 | 2 . 1 . . . 1 . 2 . . . 2 . Worker 4 | . . . . . . . . . . . . 4 . Builder 2 | . . . . . . . . . . . . 2 . Tunneler 1 | 1 . . . . . . . . . . . . . Hauler 1 | . . . . . . . . 1 . . . . . Recycler 5 | 1 . . . . 2 . . . . . . 2 . Swarmer 6 | . . 2 . . . . . . . . . . 4 Grunt 2 | . . . . . . . . 2 . . . . . Programmer 1 | . . . . . . 1 . . . . . . . Best Kill Streak 7 | 2 . 2 . . 2 1 . 2 . . . 7 4 Combat Bots Only 4 | . . 2 . . . 1 . 2 . . . . 4 Max Kills in Single Turn 4 | 1 . 1 . . 1 1 . 1 . . . 4 4 Gunslinging . | . . . . . . . . . . . . . . Exploded 4 | . . . . . . . . . . . . . 4 Melee . | . . . . . . . . . . . . . . Uniques/NPCs Destroyed . | . . . . . . . . . . . . . . Combat | -11 -10 -10 -10 -9 -8 -7 -7 -7 -6 -5 -5 -4 -3 -------- Run | Scr Mat Min Exi Min Mat Fac Was Fac Fac Fac DSF Fac Res Damage Taken 4904 | . . 147 . . 28 267 . 360 199 . 422 162 3319 Core 1981 | . . 40 . . 6 63 . 153 134 . 221 63 1301 Absorbed by Shields . | . . . . . . . . . . . . . . Core Remaining (%) 86 | 100 . . . 84 98 . . 69 84 . 77 94 . Volleys Fired 49 | 3 . 4 . . 7 17 2 13 . . . 2 1 Largest 2 | 2 . 2 . . 2 2 1 2 . . . 1 1 Hottest 128 | 70 . 70 . . 86 86 5 128 . . . 45 45 Shots Fired 86 | 6 . 8 . . 14 34 2 19 . . . 2 1 Gun 80 | 6 . 8 . . 14 34 . 18 . . . . . Cannon . | . . . . . . . . . . . . . . Launcher 4 | . . . . . . . . 1 . . . 2 1 Special 2 | . . . . . . . 2 . . . . . . Kinetic 34 | 3 . 4 . . 7 17 . 3 . . . . . Thermal 46 | 3 . 4 . . 7 17 . 15 . . . . . Explosive 4 | . . . . . . . . 1 . . . 2 1 Electromagnetic . | . . . . . . . . . . . . . . Robot Hit Streak 9 | 4 . 5 . . 2 9 1 5 . . . 1 2 Robot Miss Streak 15 | 1 . 3 . . 3 15 1 2 . . . 5 4 Penetration Max . | . . . . . . . . . . . . . . Secondary Targets 1 | . . 1 . . . . . . . . . . . Max Gunslinging Chain 1 | . . 1 . . . . . . . . . . . Shots Hit Robots 42 | 5 . 5 . . 4 14 1 11 . . . 1 1 Core Hits 56 | 4 . 3 . . 3 2 . 9 2 . 1 25 7 Critical Kills . | . . . . . . . . . . . . . . Critical Parts Destroyed . | . . . . . . . . . . . . . . Critical Strikes . | . . . . . . . . . . . . . . Melee Attacks 45 | . . . . . . 9 . 36 . . . . . Impact 45 | . . . . . . 9 . 36 . . . . . Slashing . | . . . . . . . . . . . . . . Piercing . | . . . . . . . . . . . . . . Sneak Attacks . | . . . . . . . . . . . . . . Combat Hostiles . | . . . . . . . . . . . . . . Follow-up Attacks . | . . . . . . . . . . . . . . Damage Inflicted 1289 | 48 . 56 . . 57 253 . 210 10 . 4 404 247 Guns 595 | 48 . 56 . . 57 253 . 181 . . . . . Cannons . | . . . . . . . . . . . . . . Explosions 654 | . . . . . . . . 25 . . . 391 238 Melee . | . . . . . . . . . . . . . . Ramming 40 | . . . . . . . . 4 10 . 4 13 9 Kinetic 170 | 23 . 19 . . 22 94 . 12 . . . . . Thermal 425 | 25 . 37 . . 35 159 . 169 . . . . . Explosive 654 | . . . . . . . . 25 . . . 391 238 Electromagnetic . | . . . . . . . . . . . . . . Impact . | . . . . . . . . . . . . . . Slashing . | . . . . . . . . . . . . . . Piercing . | . . . . . . . . . . . . . . Highest Corruption 10 | . . . . . . 2 9 9 . . 2 . 10 Average Corruption 7 | . . . . . . 1 7 9 . . 2 . 5 Corruption Purged . | . . . . . . . . . . . . . . Corruption Blocked . | . . . . . . . . . . . . . . Effects 26 | . . . . . . . 3 16 . . 1 . 6 Message Errors 8 | . . . . . . . . 7 . . . . 1 Matter Fused 7 | . . . . . . . 3 3 . . . . 1 Heat Flow Errors 1 | . . . . . . . . 1 . . . . . Parts Rejected 1 | . . . . . . . . 1 . . . . . Data Loss (minor) 5 | . . . . . . . . 3 . . . . 2 Data Loss (major) 1 | . . . . . . . . . . . . . 1 Misfires 1 | . . . . . . . . 1 . . . . . Alerts 1 | . . . . . . . . . . . 1 . . Misdirections 1 | . . . . . . . . . . . . . 1 Overload Shots . | . . . . . . . . . . . . . . Overflow Damage 2 | . . . . . . . . . . . . . 2 Projectiles . | . . . . . . . . . . . . . . Explosions 2 | . . . . . . . . . . . . . 2 Melee . | . . . . . . . . . . . . . . Knockbacks . | . . . . . . . . . . . . . . Impact . | . . . . . . . . . . . . . . Kinetic . | . . . . . . . . . . . . . . Secondary . | . . . . . . . . . . . . . . Self-Inflicted Damage 93 | . . . . . . . . 15 5 . 2 44 27 Shots 4 | . . . . . . . . 1 . . . 2 1 Rammed 16 | . . . . . 1 . . 1 4 . 1 7 2 Targets Rammed 18 | . . . . . 1 . . 2 4 . 1 7 3 Kicked 2 | . . . . . . . . 1 . . . . 1 Crushed . | . . . . . . . . . . . . . . Highest Temperature 271 | 60 . 40 . . 6 90 . 271 . . . . . Average Temperature 61 | 29 . 20 . . 2 27 . 108 . . . . . Received Heat Transfer 315 | . . 18 . . . . . 144 . . . 30 123 Siege Activations . | . . . . . . . . . . . . . . Robots Corrupted . | . . . . . . . . . . . . . . Combat Hostiles . | . . . . . . . . . . . . . . Parts Fried . | . . . . . . . . . . . . . . Impact Corruptions . | . . . . . . . . . . . . . . Robots Melted . | . . . . . . . . . . . . . . Combat Hostiles . | . . . . . . . . . . . . . . Parts Melted 1 | . . . . . . . . 1 . . . . . Heat Transferred 925 | 74 . 111 . . 74 296 . 370 . . . . . Parts Sabotaged . | . . . . . . . . . . . . . . Parts Stolen . | . . . . . . . . . . . . . . Parts Stripped . | . . . . . . . . . . . . . . Power Chain Reactions . | . . . . . . . . . . . . . . Missiles Intercepted . | . . . . . . . . . . . . . . Alert | -11 -10 -10 -10 -9 -8 -7 -7 -7 -6 -5 -5 -4 -3 ------- Run | Scr Mat Min Exi Min Mat Fac Was Fac Fac Fac DSF Fac Res Peak Influence 309 | 10 10 98 . 34 89 50 15 123 69 9 24 144 309 Initial 69 | . 6 3 . . 13 18 15 10 34 9 9 . 69 Average 47 | 4 8 87 . 26 34 28 15 35 48 9 11 49 168 Maximum Alert Level 1 | . . . . . . . . . . . . . 1 Low Security (%) 95 | 100 100 100 . 100 100 100 100 100 100 100 100 100 49 Level 1 4 | . . . . . . . . . . . . . 50 Level 2 . | . . . . . . . . . . . . . . Level 3 . | . . . . . . . . . . . . . . Level 4 . | . . . . . . . . . . . . . . Level 5 . | . . . . . . . . . . . . . . High Security . | . . . . . . . . . . . . . . Max Security . | . . . . . . . . . . . . . . Squads Dispatched 8 | . 1 . . 1 . 2 . 2 1 . 1 . . Investigation 2 | . 1 . . 1 . . . . . . . . . Extermination . | . . . . . . . . . . . . . . Reinforcement 6 | . . . . . . 2 . 2 1 . 1 . . Assault . | . . . . . . . . . . . . . . Garrison . | . . . . . . . . . . . . . . Intercept . | . . . . . . . . . . . . . . Searches Triggered . | . . . . . . . . . . . . . . Construction Impeded . | . . . . . . . . . . . . . . Haulers Reinforced . | . . . . . . . . . . . . . . Active Scanning Responses . | . . . . . . . . . . . . . . Cargo Convoy Interrupts . | . . . . . . . . . . . . . . Stealth | -11 -10 -10 -10 -9 -8 -7 -7 -7 -6 -5 -5 -4 -3 --------- Run | Scr Mat Min Exi Min Mat Fac Was Fac Fac Fac DSF Fac Res Distress Signals 1 | . . . . . . . . 1 . . . . . Communications Jammed . | . . . . . . . . . . . . . . Distress Signals . | . . . . . . . . . . . . . . Times Spotted 84 | . 2 5 . . 10 4 6 16 4 . 6 2 29 Peak Tracking Total 18 | . 5 5 . . 4 1 6 5 4 . 4 3 18 Tactical Retreats 7 | . . 1 . . . . . 2 . . 1 . 3 Traps | -11 -10 -10 -10 -9 -8 -7 -7 -7 -6 -5 -5 -4 -3 ------- Run | Scr Mat Min Exi Min Mat Fac Was Fac Fac Fac DSF Fac Res Traps Triggered 7 | . 1 . . . . 2 . 1 . . 1 2 . Indirectly . | . . . . . . . . . . . . . . Trap Hack Attempts . | . . . . . . . . . . . . . . Triggered . | . . . . . . . . . . . . . . Disarmed . | . . . . . . . . . . . . . . Reprogrammed . | . . . . . . . . . . . . . . Reused . | . . . . . . . . . . . . . . Traps Extracted . | . . . . . . . . . . . . . . Installed . | . . . . . . . . . . . . . . Triggered . | . . . . . . . . . . . . . . Machines | -11 -10 -10 -10 -9 -8 -7 -7 -7 -6 -5 -5 -4 -3 ---------- Run | Scr Mat Min Exi Min Mat Fac Was Fac Fac Fac DSF Fac Res Machines Disabled 2 | . . . . . 1 . . 1 . . . . . Max in Single Turn 1 | . . . . . 1 . . 1 . . . . . Machines Sabotaged . | . . . . . . . . . . . . . . Garrisons Compromised . | . . . . . . . . . . . . . . Overloaded Fab Kills . | . . . . . . . . . . . . . . Hacking | -11 -10 -10 -10 -9 -8 -7 -7 -7 -6 -5 -5 -4 -3 --------- Run | Scr Mat Min Exi Min Mat Fac Was Fac Fac Fac DSF Fac Res Machines Accessed 23 | . 2 . 4 1 3 4 . 5 1 1 . 1 1 Terminals 11 | . 1 . . . 1 2 . 3 1 1 . 1 1 Fabricators . | . . . . . . . . . . . . . . Repair Stations 1 | . . . . . . 1 . . . . . . . Recycling Units 4 | . 1 . . . 1 1 . 1 . . . . . Scanalyzers 1 | . . . . . 1 . . . . . . . . Garrison Access 1 | . . . . . . . . 1 . . . . . Total Hacks 57 | . 6 . 4 1 11 10 . 13 4 1 . 6 1 Successful 25 | . 2 . 4 1 6 3 . 3 2 1 . 2 1 Failed 32 | . 4 . . . 5 7 . 10 2 . . 4 . Catastrophic 3 | . 1 . . . . . . 1 . . . 1 . Database Lockouts . | . . . . . . . . . . . . . . Manual 16 | . 2 . . . 1 4 . 5 . . . 4 . Terminals 33 | . 4 . . . 3 5 . 9 4 1 . 6 1 Fabricators . | . . . . . . . . . . . . . . Repair Stations 4 | . . . . . . 4 . . . . . . . Recycling Units 9 | . 2 . . . 4 1 . 2 . . . . . Scanalyzers 4 | . . . . . 4 . . . . . . . . Garrison Access 2 | . . . . . . . . 2 . . . . . Terminal Hacks 17 | . 1 . 4 1 2 1 . 2 2 1 . 2 1 Record 10 | . . . 4 . . 1 . 1 2 . . 2 . Open Door 1 | . . . . 1 . . . . . . . . . Open DSF 1 | . . . . . . . . . . 1 . . . Unreport Threat 2 | . . . . . 2 . . . . . . . . Locate Traps 1 | . 1 . . . . . . . . . . . . Zone Layout 2 | . . . . . . . . 1 . . . . 1 Fabricator Hacks . | . . . . . . . . . . . . . . Repair Station Hacks 1 | . . . . . . 1 . . . . . . . Refit 1 | . . . . . . 1 . . . . . . . Recycling Unit Hacks 3 | . 1 . . . . 1 . 1 . . . . . Retrieve Matter 1 | . . . . . . . . 1 . . . . . Retrieve Components 2 | . 1 . . . . 1 . . . . . . . Scanalyzer 4 | . . . . . 4 . . . . . . . . Insert Component 2 | . . . . . 2 . . . . . . . . Analyze 2 | . . . . . 2 . . . . . . . . Garrison Access Hacks . | . . . . . . . . . . . . . . Unauthorized Hacks . | . . . . . . . . . . . . . . Terminals . | . . . . . . . . . . . . . . Fabricators . | . . . . . . . . . . . . . . Repair Stations . | . . . . . . . . . . . . . . Recycling Units . | . . . . . . . . . . . . . . Scanalyzers . | . . . . . . . . . . . . . . Garrison Access . | . . . . . . . . . . . . . . Data Cores Recovered . | . . . . . . . . . . . . . . Used . | . . . . . . . . . . . . . . Hacking Detections 16 | . 2 . . . 2 3 . 5 1 1 . 1 1 Full Trace Events . | . . . . . . . . . . . . . . Feedback Events . | . . . . . . . . . . . . . . Feedback Blocked . | . . . . . . . . . . . . . . Robot Schematics Acquired . | . . . . . . . . . . . . . . Robots Built . | . . . . . . . . . . . . . . Authchips . | . . . . . . . . . . . . . . Time . | . . . . . . . . . . . . . . Total Robot Build Rating . | . . . . . . . . . . . . . . Part Schematics Acquired 2 | . . . . . 2 . . . . . . . . Parts Built . | . . . . . . . . . . . . . . Authchips . | . . . . . . . . . . . . . . Time . | . . . . . . . . . . . . . . Total Part Build Rating . | . . . . . . . . . . . . . . Parts Repaired . | . . . . . . . . . . . . . . Time . | . . . . . . . . . . . . . . Parts Recycled . | . . . . . . . . . . . . . . Recycled Matter . | . . . . . . . . . . . . . . Retrieved Matter . | . . . . . . . . . . . . . . Retrieved Components 3 | . 2 . . . . 1 . . . . . . . Parts Scanalyzed 2 | . . . . . 2 . . . . . . . . Part Schematics Acquired 2 | . . . . . 2 . . . . . . . . Parts Damaged 1 | . . . . . 1 . . . . . . . . Bothacking | -11 -10 -10 -10 -9 -8 -7 -7 -7 -6 -5 -5 -4 -3 ------------ Run | Scr Mat Min Exi Min Mat Fac Was Fac Fac Fac DSF Fac Res Used RIF Installer . | . . . . . . . . . . . . . . Robots Hacked 1 | . . . . . . . 1 . . . . . . Non-combat . | . . . . . . . . . . . . . . Combat 1 | . . . . . . . 1 . . . . . . Robot Hacks Applied 1 | . . . . . . . 1 . . . . . . parse_system 1 | . . . . . . . 1 . . . . . . Relay Couplers Released . | . . . . . . . . . . . . . . Fabnet Peak Effective % . | . . . . . . . . . . . . . . Robots Rewired . | . . . . . . . . . . . . . . Allies Hacked . | . . . . . . . . . . . . . . Hacks Repelled . | . . . . . . . . . . . . . . Allies | -11 -10 -10 -10 -9 -8 -7 -7 -7 -6 -5 -5 -4 -3 -------- Run | Scr Mat Min Exi Min Mat Fac Was Fac Fac Fac DSF Fac Res Total Allies 5 | . . . . 5 . . . . . . . . . Largest Group 4 | . . . . 4 4 . . . . . . . . Highest-Rated Group 75 | . . . . 75 75 . . . . . . . . Highest-Rated Ally 31 | . . . . 31 31 . . . . . . . . Total Orders . | . . . . . . . . . . . . . . Ally Attacks 26 | . . . . 5 21 . . . . . . . . Total Damage 375 | . . . . 75 300 . . . . . . . . Kills 5 | . . . . 1 4 . . . . . . . . Allies Corrupted . | . . . . . . . . . . . . . . Allies Melted . | . . . . . . . . . . . . . . Intel | -11 -10 -10 -10 -9 -8 -7 -7 -7 -6 -5 -5 -4 -3 ------- Run | Scr Mat Min Exi Min Mat Fac Was Fac Fac Fac DSF Fac Res Robot Analysis Total . | . . . . . . . . . . . . . . Derelict Logs Recovered 2 | . . 1 . 1 . . . . . . . . . Drone Launches . | . . . . . . . . . . . . . . Drone Recoveries . | . . . . . . . . . . . . . . Exploration | -11 -10 -10 -10 -9 -8 -7 -7 -7 -6 -5 -5 -4 -3 ------------- Run | Scr Mat Min Exi Min Mat Fac Was Fac Fac Fac DSF Fac Res Turns Passed 3067 | 82 139 247 434 192 312 470 76 583 42 3 76 189 222 Spaces Moved 3943 | 61 168 289 532 213 252 597 184 829 112 4 192 247 263 Core 105 | 5 . . . . . . . . 2 4 14 20 60 Treads 3 | . . . . . . . . . . . . . 3 Legs 89 | . . . . . . . . 15 . . . 5 69 Wheels 1891 | 56 168 289 532 213 252 207 . . . . . 79 95 Hover . | . . . . . . . . . . . . . . Flight 1855 | . . . . . . 390 184 814 110 . 178 143 36 Fastest Speed 29 | 50 80 80 80 80 85 39 39 32 32 100 29 30 40 Average Speed 61 | 82 80 80 80 80 86 56 39 42 34 100 30 52 76 Slowest Speed 170 | 100 80 80 80 80 90 90 39 130 120 100 50 100 170 Overloaded Moves . | . . . . . . . . . . . . . . Propulsion Burnouts . | . . . . . . . . . . . . . . Robots Hopped 11 | . . . . . . . . 10 . . . . 1 Cave-ins Triggered . | . . . . . . . . . . . . . . Exploration Rate (%) 38 | 3 34 59 93 47 20 13 88 25 3 . 89 11 11 Regions Visited 13 Branch Regions 3 Pre-discovered Areas 1 | . . . . 1 . . . . . . . . . Known Exits Taken 5 | . . . . . 1 . . 1 1 1 . 1 . Unknown Exits Taken 5 | 1 1 1 1 1 . . . . . . . . . Scrap Searched 1 | . . . . 1 . . . . . . . . . Spaces Dug 2 | . . . . . . 1 . 1 . . . . . Terrain Destroyed 43 | . . . . . . 1 . 1 . . . 18 23 Melee 1 | . . . . . . 1 . . . . . . . Projectile . | . . . . . . . . . . . . . . AOE 42 | . . . . . . . . 1 . . . 18 23 Terrain Rammed . | . . . . . . . . . . . . . . Walls Destroyed . | . . . . . . . . . . . . . . Machines Disabled . | . . . . . . . . . . . . . . Actions | -11 -10 -10 -10 -9 -8 -7 -7 -7 -6 -5 -5 -4 -3 --------- Run | Scr Mat Min Exi Min Mat Fac Was Fac Fac Fac DSF Fac Res Total 4406 | 83 173 297 540 234 335 677 186 975 115 3 210 300 278 Wait 157 | . . 5 . 17 48 31 . 48 . . 8 . . Move 3911 | 60 167 288 531 212 251 597 183 809 112 3 191 246 261 Hop 10 | . . . . . . . . 9 . . . . 1 Pick Up 42 | 10 3 . 3 2 6 5 . 7 . . 3 . 3 Fast Attach 40 | 7 . . 3 . 3 3 . 14 . . . 3 7 Attach 16 | . . . . . 3 . . 2 . . 4 5 2 Detach 4 | . . . . . . . . 3 . . . 1 . Swap 25 | 1 . . . 1 6 9 1 7 . . . . . Drop 54 | 2 3 . 3 2 10 6 . 25 . . 3 . . Fire 49 | 3 . 4 . . 7 17 2 13 . . . 2 1 Melee 45 | . . . . . . 9 . 36 . . . . . Ram 15 | . . . . . 1 . . 1 3 . 1 7 2 Kick 2 | . . . . . . . . 1 . . . . 1 Crush . | . . . . . . . . . . . . . . Escape Stasis 36 | . . . . . . . . . . . . 36 . Rewire . | . . . . . . . . . . . . . . Trap . | . . . . . . . . . . . . . . Miscellaneous . | . . . . . . . . . . . . . . Route ------- -11/Scrapyard -10/Materials -10/Mines (discovered 2 exits: [*Mat] / *Exi) -10/Exiles (discovered 2 exits: *Min x2) -9/Mines -8/Materials -7/Factory -7/Waste -7/Factory (discovered 3 exits: *Fac x2 / *Low) -6/Factory -5/Factory -5/DSF -4/Factory -3/Research History --------- Turn | Location | Event 12 | -11/Scrapyard | Discovered new exit (range 14) 83 | -11/Scrapyard | Entered Materials 214 | -10/Materials | Discovered new exit (range 10) 222 | -10/Materials | Entered Mines 234 | -10/Mines | Met a Derelict bent on vengeance 311 | -10/Mines | Build established: Mutant 400 | -10/Mines | Learned location of 1 exit from Materials 407 | -10/Mines | Discovered new exit (range 8) 466 | -10/Mines | Deemed a non-threat by the Exiles lab entrance 466 | -10/Mines | Discovered new exit (range 5) 469 | -10/Mines | Entered Exiles 469 | -10/Exiles | Found Exiles lab abandoned 483 | -10/Exiles | Discovered new exit (range 15) 894 | -10/Exiles | Discovered new exit (range 10) 903 | -10/Exiles | Entered Mines 907 | -9/Mines | Assisted by bots powering up and referring to "LRC-V3" 928 | -9/Mines | Met a Derelict shopkeep closing up shop 928 | -9/Mines | Learned location of Zion (-6) 1042 | -9/Mines | Discovered new exit (range 8) 1095 | -9/Mines | Entered Materials 1095 | -8/Materials | Accompanied by 4 allies 1095 | -8/Materials | Evolved 4 slots: Propulsion x2, Utility x2 1096 | -8/Materials | Identified exit to Factory 1104 | -8/Materials | Led the pair of lost Derelicts to an unsafe place 1407 | -8/Materials | Entered Factory 1407 | -7/Factory | Evolved 2 slots: Utility x2 1443 | -7/Factory | Build established: Scavenger-Mutant 1877 | -7/Factory | Sucked down chute 1877 | -7/Factory | Entered Waste 1892 | -7/Waste | EMP discharged 1909 | -7/Waste | Spotted C-40 Crusher 1915 | -7/Waste | Spotted C-40 Crusher 1923 | -7/Waste | Spotted C-40 Crusher 1924 | -7/Waste | Spotted C-40 Crusher 1924 | -7/Waste | Spotted C-40 Crusher 1944 | -7/Waste | Spotted C-40 Crusher 1947 | -7/Waste | Discovered new exit (range 16) 1953 | -7/Waste | Identified exit to Factory 1953 | -7/Waste | Entered Factory 2253 | -7/Factory | Build established: Mutant 2289 | -7/Factory | Found Prototype Launcher 2289 | -7/Factory | Identified Rocket Array 2344 | -7/Factory | Discovered new exit (range 16) 2435 | -7/Factory | Discovered new exit (range 5) 2437 | -7/Factory | Identified exit to Lower Caves 2534 | -7/Factory | Discovered new exit (range 9) 2536 | -7/Factory | Identified exit to Factory 2536 | -7/Factory | Entered another Factory area 2536 | -6/Factory | Evolved 2 slots: Propulsion x1, Utility x1 2571 | -6/Factory | Discovered new exit (range 5) 2575 | -6/Factory | Identified exit to Factory 2578 | -6/Factory | Entered another Factory area 2578 | -5/Factory | Evolved 2 slots: Propulsion x1, Utility x1 2581 | -5/Factory | Identified exit to DSF 2581 | -5/Factory | Entered DSF 2600 | -5/DSF | Discovered new exit (range 11) 2606 | -5/DSF | Lost 5 parts (1p2n2u) 2616 | -5/DSF | Additional patrols routed to DSF 2650 | -5/DSF | Released all parts (2) 2657 | -5/DSF | Entered Factory 2657 | -4/Factory | Evolved 2 slots: Utility x2 2680 | -4/Factory | Lost 3 parts (2n1u) 2698 | -4/Factory | Spotted B-86 Titan 2810 | -4/Factory | Discovered new exit (range 14) 2845 | -4/Factory | Identified exit to Research 2846 | -4/Factory | Entered Research 2846 | -3/Research | Evolved 2 slots: Power x1, Utility x1 2989 | -3/Research | Lost 4 parts (1p1n1u1w) 3028 | -3/Research | System corruption reached 10% 3034 | -3/Research | Core integrity fell below 50% 3050 | -3/Research | Core integrity fell below 20% 3068 | -3/Research | Destroyed by S-43 Plague with Heavy Machine Gun Last Messages --------------- 03045_ Biometal Medium Treads destroyed. 03045_ P-80 Master destroyed. 03045_ Penetrated by Slug. 03046_ Slammed into H-77 Assassin. 03046_ Penetrated by Slug. 03046_ Slug penetrates H-77 Assassin. 03048_ Penetrated by Slug. 03049_ Slug penetrates Wall. 03050_ Slug penetrates Terminal. 03050_ Slug penetrates Wall. 03059_ Acquired Centrium Leg. 03060_ Slug penetrates Wall. 03060_ Penetrated by Slug. 03062_ Acquired Centrium Leg. 03064_ <5I M=SHFB HVXEAPEVP#Y8VF 03064_ Kicked S-43 Plague. 03065_ Penetrated by Slug. 03066_ Slug penetrates Wall. 03066_ Penetrated by Slug. 03066_ Mic. Fission Core destroyed. Map ----- +----------------------------------------------------+ | #????# #????"?????????????????????? | | #????# !#???""?????????????????????? | | #????# ????""" ??????????????????? | | ####+####?########+#####"""" #????????????????? | | #?# / = #????????????????? | | #?# ## #????????????????? | | #?# #??????????????????????????? | | % #?# #??????????????????????????? | | #### #?# #### ##??????????????????????????? | | # #?# #??# #???????????????????????????? | | # ### #??# #???????????????????????????? | | # #??#*!#???????????????????????????? | | # #??#!%#???????????????????????????? | | # #??#[=#???????????????????????????? | | # #??#=!#???????????????????????????? | | # ########??# #???????????????????????????? | | # #?????????# #???????????????????????????? | | #### #?????????# #???????????????????????????? | | ???# #?????????# #???????????????????????????? | | ???# ??????????# #???????????????????????????? | | ???# ??????????# #???????????????????????????? | | ???# ??????????# #?#########?????????????????? | | ???# ??????????# #?# #?????????????????? | | ???# ??????????# #?# #?????????????????? | | ???# ??????????# #?# p #?????????????????? | | ???? ??????????# #?# @""" #?????????????????? | | ?????? ???????????# #?# """ #?????????????????? | | ??????????????????# #?# """ #?????????????????? | | ??????????????????# #?# sF" #?????????????????? | | ??????????????????# #?#ss""" #?????????????????? | | ??????????????????# #?# "" #?????????????????? | | ??????????????????# #?# g #???? #???????????? | | ????????????????### ### #?? #???????????? | | ????????????????# ###h###### #???????????? | | ????????????????# #???????????? | | ????????????????# T" #???????????? | | ????????????????# "" #???????????? | | ????????????????# #???????????? | | ????????????????# ###+######### #???????????? | | ????????????????###+####? ?????????????????????? | | ????????????????????????? ?????????????????????? | | ???????????????????????? ????????????????????? | | ???????????????????????? ""????????????????????? | | ???????????????????????# S"" ???????????????????? | | ???????????????????????# "" ???????????????????? | | ???????????????????????# ??????????????????? | | ???????????????????????# ??????????????????? | | ???????????????????????#########?????????????????? | | ?????????????????????????????????????????????????? | | ?????????????????????????????????????????????????? | +----------------------------------------------------+ Best States ------------- Heat Dissipation 46 Energy Generation 21 Energy Capacity 170 Matter Stores 300 Matter Capacity 300 Sight Range 16 Robot Scan Range 14 Terrain Scan Range 16 Terrain Scan Density 210 Jamming Range 12 Additional Mass Support 9 Armor Coverage 150 Evasion (%) 64 Offensive Hacking 10 Item Schematics ----------------- Mni. Grenade Launcher | -8/Materials | Scanalyzed Flight Unit | -8/Materials | Scanalyzed Robot Schematics ------------------ None Fabricated ------------ Nothing Alien Tech Used ----------------- None Achievements -------------- None Challenges ------------ None Game ------ Seed AerolevWarpArmor Manual? 0 Play Time 00:54:29 Cumulative 17.6 hours Start 2022.03.31 @ 23:16:24 End 2022.04.01 @ 00:11:58 Sessions 1 Manual Loads 0 Difficulty Rogue Special Mode None Game No. 13 Rogue 13 Adventurer 0 Explorer 0 Win Type - Total 0 Types 0/0/0/0/0/0/0/0/0 Lore% 22 Gallery% 27 Achievement% 27 Wizard Run 0 Options --------- ASCII 0 Keyboard 0 Movement Mouse Keybinds 0 Fullscreen 1 Font 18/X11 Map View 76x50 Tactical HUD 1 Map Filters NONE Filters NONE Steam 1 RUN: 98a4cf6f-13b9-423f-8cb8-37c38fd67803